bitfinex/quotes_BTCUSD_20250417
["timestamp","ask_amount","ask_price","bid_price","bid_amount"]
[1744916730922,0.0483,84944.0,84937.0,0.23546685]
[1744916731127,0.24721708,84946.0,84943.0,0.34]
[1744916731338,0.0499,84952.0,84949.0,0.01177176]
[1744916731549,0.001,84953.0,84952.0,0.57542706]
[1744916731972,0.001,84953.0,84952.0,0.58836269]
[1744916732609,0.001,84953.0,84952.0,0.59822023]
[1744916741345,0.24716586,84964.0,84960.0,0.24717259]
[1744916741556,0.24716586,84964.0,84961.0,0.34]
[1744916741760,0.01176927,84967.0,84963.0,0.01176982]
[1744916741995,0.2471578,84966.0,84963.0,0.35176982]
[1744916742168,0.2471578,84966.0,84964.0,0.01263095]
[1744916742554,0.23539104,84965.0,84963.0,0.34]
[1744916742927,0.2471635,84964.0,84961.0,0.3517701]
[1744916743131,0.23539745,84963.0,84961.0,0.34]
[1744916744244,0.23539935,84962.0,84960.0,0.34]
[1744916744480,0.2471666,84963.0,84960.0,0.57540489]
[1744916744710,0.01176969,84964.0,84960.0,0.57540489]
[1744916744711,0.01176969,84964.0,84962.0,0.34]
[1744916744942,0.24716359,84964.0,84962.0,0.34]
[1744916745369,0.23539658,84963.0,84962.0,0.34]
[1744916746022,0.23539658,84963.0,84961.0,0.34]
[1744916746233,0.24716359,84964.0,84961.0,0.34]
[1744916746740,0.23539899,84963.0,84961.0,0.34]
[1744916746948,0.23539899,84963.0,84961.0,0.57540123]
[1744916747160,0.01176969,84964.0,84961.0,0.58717133]
[1744916748111,0.2471637,84964.0,84961.0,0.58717133]
[1744916748859,0.23539873,84963.0,84961.0,0.0117701]
[1744916749034,0.24716855,84963.0,84960.0,0.5871745]
[1744916749261,0.24716411,84964.0,84961.0,0.23540146]
[1744916749780,0.23539717,84963.0,84960.0,0.5871745]
[1744916750027,0.24716411,84964.0,84960.0,0.5871745]
[1744916750226,0.24716411,84964.0,84961.0,0.23540212]
[1744916750431,0.24716411,84964.0,84961.0,0.24717222]
[1744916750631,0.01176969,84964.0,84961.0,0.24717222]
[1744916750780,0.23539123,84965.0,84964.0,0.34]
[1744916750981,0.23538961,84966.0,84964.0,0.35176969]
[1744916751182,0.01176927,84967.0,84964.0,0.58716318]
[1744916751391,0.23538827,84966.0,84965.0,0.01262951]
[1744916752458,0.24715768,84966.0,84963.0,0.01176982]
[1744916752674,0.24715768,84966.0,84964.0,0.34]
[1744916752900,0.24715489,84967.0,84965.0,0.01263045]
[1744916752901,0.01176927,84967.0,84965.0,0.01263045]
[1744916753126,0.24715481,84967.0,84965.0,0.01263045]
[1744916753346,0.23538827,84966.0,84965.0,0.01263045]
[1744916753940,0.24715768,84966.0,84963.0,0.001]
[1744916754169,0.24715768,84966.0,84964.0,0.34]
[1744916754409,0.23539104,84965.0,84964.0,0.35263327]
[1744916755280,0.23539104,84965.0,84964.0,0.01263327]
[1744916755784,0.23539381,84964.0,84963.0,0.001]
[1744916759882,0.23538827,84966.0,84964.0,0.01176969]
[1744916760069,0.24715768,84966.0,84964.0,0.34]
[1744916760288,0.23539104,84965.0,84964.0,0.34]
[1744916761045,0.23539381,84964.0,84963.0,0.001]
[1744916761392,0.23539115,84965.0,84963.0,0.001]
[1744916762515,0.23539381,84964.0,84963.0,0.001]
[1744916762715,0.2471598,84966.0,84963.0,0.001]
[1744916762917,0.23539193,84965.0,84963.0,0.001]
[1744916763543,0.23539381,84964.0,84963.0,0.001]
[1744916766434,0.23539381,84964.0,84963.0,0.01361531]
[1744916767282,0.01176927,84967.0,84963.0,0.01361531]
[1744916767283,0.24715573,84967.0,84964.0,0.01176969]
[1744916767587,0.0008432,84970.0,84968.0,0.23538083]
[1744916767785,0.0008432,84970.0,84969.0,0.24799997]
[1744916768015,0.23622039,84970.0,84969.0,0.01262001]
[1744916768402,0.0008432,84970.0,84967.0,0.01176927]
[1744916768607,0.0008432,84970.0,84969.0,0.01262095]
[1744916768797,0.0008432,84970.0,84968.0,0.24800156]
[1744916771757,0.23537996,84969.0,84968.0,0.01262001]
[1744916771959,0.23537996,84969.0,84965.0,0.35176955]
[1744916772214,0.24714895,84969.0,84965.0,0.35176955]
[1744916772413,0.01176899,84969.0,84968.0,0.34]
[1744916772791,0.24714895,84969.0,84968.0,0.35260235]
[1744916773777,0.24714895,84969.0,84968.0,0.01260235]
[1744916774121,0.24714895,84969.0,84966.0,0.58715626]
[1744916774259,0.24714895,84969.0,84968.0,0.01260235]
[1744916774473,0.24714895,84969.0,84967.0,0.01260141]
[1744916774732,0.24714895,84969.0,84968.0,0.01260235]
[1744916775132,0.24714895,84969.0,84966.0,0.58715626]
[1744916775335,0.23538439,84968.0,84967.0,0.01260141]
[1744916775763,0.24714895,84969.0,84968.0,0.34]
[1744916775971,0.24714895,84969.0,84968.0,0.35260235]
[1744916776834,0.24714895,84969.0,84968.0,0.01260235]
[1744916777062,0.36659686,84969.0,84968.0,0.01260235]
[1744916777305,0.23539381,84964.0,84963.0,0.001]
[1744916777536,0.23539381,84964.0,84963.0,0.0135793]
[1744916778366,0.23538077,84969.0,84966.0,0.01176941]
[1744916778611,0.24715186,84968.0,84967.0,0.01260043]
[1744916779044,0.23538827,84966.0,84965.0,0.34]
[1744916779460,0.23538827,84966.0,84965.0,0.35259854]
[1744916779893,0.23538613,84967.0,84965.0,0.01259854]
[1744916780096,0.23538613,84967.0,84965.0,0.35259854]
[1744916780273,0.23538613,84967.0,84965.0,0.58798948]
[1744916780471,0.23538613,84967.0,84965.0,0.35259854]
[1744916780677,0.01261205,84970.0,84966.0,0.23538822]
[1744916780678,0.24714911,84969.0,84966.0,0.23538822]
[1744916780833,0.2353834,84968.0,84965.0,0.59975874]
[1744916781035,0.2353834,84968.0,84967.0,0.01259303]
[1744916781251,0.2353834,84968.0,84966.0,0.01259208]
[1744916781436,0.2353834,84968.0,84967.0,0.01259303]
[1744916781896,0.23538686,84967.0,84965.0,0.35176955]
[1744916782111,0.23538686,84967.0,84965.0,0.34]
[1744916782384,0.01176899,84969.0,84966.0,0.01259114]
[1744916782609,0.2353855,84967.0,84966.0,0.01259114]
[1744916782829,0.2353921,84965.0,84963.0,0.341]
[1744916783045,0.2353921,84965.0,84963.0,0.57639539]
[1744916783257,0.01176941,84966.0,84965.0,0.34]
[1744916783258,0.24715768,84966.0,84965.0,0.34]
[1744916784248,0.01176941,84966.0,84965.0,0.34]
[1744916784460,0.24715768,84966.0,84965.0,0.34]
[1744916784881,0.24715158,84969.0,84965.0,0.57539104]
[1744916785183,0.24715415,84968.0,84965.0,0.57539104]
[1744916785385,0.2353858,84967.0,84964.0,0.01176969]
[1744916785538,0.24715415,84968.0,84965.0,0.24715824]
[1744916785746,0.24715415,84968.0,84966.0,0.34]
[1744916786503,0.2353855,84967.0,84966.0,0.34]
[1744916787141,0.01176913,84968.0,84965.0,0.35176955]
[1744916787296,0.01176913,84968.0,84966.0,0.23538827]
[1744916787526,0.24715311,84968.0,84965.0,0.58715822]
[1744916787757,0.01176913,84968.0,84966.0,0.23538783]
[1744916788284,0.24798961,84970.0,84967.0,0.23538339]
[1744916788489,0.0008432,84970.0,84969.0,0.57537996]
[1744916789512,0.0008432,84970.0,84969.0,0.34]
[1744916791751,0.23622039,84970.0,84969.0,0.341]
[1744916797052,0.0008432,84970.0,84969.0,0.35359131]
[1744916797255,0.0008432,84970.0,84969.0,0.58897127]
[1744916797904,0.0008432,84970.0,84969.0,0.24897127]
[1744916799790,0.0008432,84970.0,84969.0,0.58897127]
[1744916800189,0.0008432,84970.0,84969.0,0.58997127]
[1744916802465,0.002,84979.0,84978.0,0.23535503]
[1744916802686,0.00209526,84979.0,84978.0,0.23535503]
[1744916802893,0.00209526,84979.0,84978.0,0.24786407]
[1744916803655,0.00209526,84979.0,84978.0,0.26326985]
[1744916807429,0.00209526,84979.0,84978.0,0.61210733]
[1744916807654,0.00080521,84981.0,84980.0,0.57534949]
[1744916807868,0.0004896,84981.0,84980.0,0.57534949]
[1744916808060,0.0004896,84981.0,84980.0,0.58781487]
[1744916811260,0.0004896,84981.0,84980.0,0.58981487]
[1744916813440,0.0004896,84981.0,84980.0,0.24981487]
[1744916815926,0.0004896,84981.0,84980.0,0.09054451]
[1744916816885,0.0004896,84981.0,84980.0,0.09289757]
[1744916817085,0.0004896,84981.0,84980.0,0.09054451]
[1744916818006,0.0004896,84981.0,84980.0,0.09289757]
[1744916820334,0.000842,84983.0,84982.0,0.57534395]
[1744916820693,0.000842,84983.0,84982.0,0.58562431]
[1744916822432,0.001842,84983.0,84982.0,0.58562431]
[1744916827945,0.000843,84987.0,84986.0,0.57533287]
[1744916828324,0.0008428,85001.0,84996.0,0.57530519]
[1744916828685,0.000843,85007.0,84996.0,0.57530519]
[1744916828686,3.6e-06,85007.0,85006.0,0.5752775]
[1744916829214,6.706e-05,85007.0,85006.0,0.58550275]
[1744916829751,6.706e-05,85007.0,85006.0,0.59434334]
[1744916833175,0.002,85009.0,85008.0,0.57527197]
[1744916833329,6.346e-05,85009.0,85008.0,0.70926073]
[1744916833529,6.346e-05,85009.0,85008.0,0.71940386]
[1744916833716,0.0008426,85017.0,85008.0,0.71940386]
[1744916833922,0.0008426,85017.0,85014.0,0.57525536]
[1744916834366,0.0008426,85017.0,85014.0,0.58539989]
[1744916837206,0.0008426,85017.0,85014.0,0.71938865]
[1744916837790,0.28150649,85032.0,85031.0,0.57520833]
[1744916837791,0.0463,85032.0,85031.0,0.57520833]
[1744916838004,0.0463,85032.0,85031.0,0.35007543]
[1744916838242,0.04636345,85032.0,85031.0,0.35007543]
[1744916838377,6.345e-05,85032.0,85031.0,0.35007543]
[1744916839218,6.345e-05,85032.0,85031.0,0.35901837]
[1744916839628,6.345e-05,85032.0,85031.0,0.60880034]
[1744916841155,0.23526901,85032.0,85031.0,0.37359201]
[1744916842056,6.345e-05,85032.0,85031.0,0.37359201]
[1744916842261,6.345e-05,85032.0,85031.0,0.60880034]
[1744916842759,6.345e-05,85032.0,85031.0,0.37359201]
[1744916843439,0.23526901,85032.0,85031.0,0.37359201]
[1744916848487,0.28066901,85032.0,85031.0,0.37359201]
[1744916848641,0.28066901,85032.0,85031.0,0.36351658]
[1744916848840,0.28066901,85032.0,85031.0,0.37340938]
[1744916851227,0.28166901,85032.0,85031.0,0.36446644]
[1744916851382,0.32756901,85032.0,85031.0,0.02446644]
[1744916851591,0.32756901,85032.0,85011.0,0.34]
[1744916851592,0.2352609,85012.0,85011.0,0.34]
[1744916851792,0.0609629,85013.0,85011.0,0.34986992]
[1744916851988,0.0609629,85013.0,85011.0,0.00986992]
[1744916852190,0.2352609,85012.0,85011.0,0.34]
[1744916852394,0.2352609,85012.0,85011.0,0.37324816]
[1744916852802,0.2352609,85012.0,85011.0,0.02460924]
[1744916853012,0.2352609,85012.0,85011.0,0.01470201]
[1744916853229,0.23528581,85003.0,85002.0,0.44791492]
[1744916853431,0.24706768,84997.0,84993.0,0.44791492]
[1744916853633,0.0482,85010.0,85004.0,0.01176415]
[1744916853846,0.0482,85010.0,85005.0,0.34]
[1744916853847,0.01176359,85008.0,85005.0,0.34]
[1744916854044,0.0482,85010.0,85005.0,0.02043099]
[1744916854261,0.01176276,85014.0,85008.0,0.23526993]
[1744916854458,0.01176235,85017.0,85012.0,0.24702064]
[1744916854705,0.24701069,85017.0,85014.0,0.34]
[1744916854905,0.0117618,85021.0,85014.0,0.35176276]
[1744916855131,0.23524799,85017.0,85014.0,0.58701785]
[1744916855473,0.24701034,85017.0,85014.0,0.35176276]
[1744916855654,0.23525041,85016.0,85014.0,0.35176276]
[1744916855847,0.24701034,85017.0,85014.0,0.58701792]
[1744916856108,0.0117618,85021.0,85016.0,0.35176249]
[1744916856326,0.24698512,85026.0,85017.0,0.01176235]
[1744916856533,0.24698512,85026.0,85019.0,0.01176207]
[1744916856534,0.01176152,85023.0,85019.0,0.01176207]
[1744916856690,0.0117618,85021.0,85017.0,0.01004217]
[1744916856889,0.0117618,85021.0,85020.0,0.01004405]
[1744916857092,0.0117618,85021.0,85015.0,0.01176263]
[1744916857282,0.24701086,85017.0,85010.0,0.01176332]
[1744916857487,0.01176207,85019.0,85012.0,0.2470226]
[1744916857682,0.01176235,85017.0,85013.0,0.0117629]
[1744916857885,0.01176193,85020.0,85015.0,0.01176263]
[1744916858138,0.01176193,85020.0,85018.0,0.34]
[1744916859108,0.2469991,85021.0,85018.0,0.34]
[1744916859308,0.23522198,85027.0,84990.0,0.0501]
[1744916859309,0.01176332,85010.0,85005.0,0.24394576]
[1744916859514,0.01176304,85012.0,85007.0,0.01176373]
[1744916859727,0.01176276,85014.0,85010.0,0.34]
[1744916860344,0.0117629,85013.0,85010.0,0.34]
[1744916860547,0.24701951,85014.0,85010.0,0.34]
[1744916860742,0.01176276,85014.0,85010.0,0.34]
[1744916861191,0.24701972,85014.0,85010.0,0.34]
[1744916861348,0.01176304,85012.0,85008.0,0.34]
[1744916861541,0.01176304,85012.0,85008.0,0.57527141]
[1744916861805,0.01176304,85012.0,85008.0,0.34]
[1744916862011,0.24702441,85012.0,85008.0,0.34]
[1744916862165,0.01176304,85012.0,85008.0,0.34]
[1744916862359,0.01176304,85012.0,85008.0,0.35176359]
[1744916862572,0.24702563,85012.0,85008.0,0.34]
[1744916862771,0.0454,85007.0,85002.0,0.35176442]
[1744916862990,0.28067673,85007.0,85002.0,0.35176442]
[1744916863193,0.0454,85007.0,85004.0,0.01176415]
[1744916863398,0.0454,85007.0,85004.0,0.35176415]
[1744916865346,0.24703388,85009.0,85005.0,0.24387118]
[1744916865544,0.24703388,85009.0,85005.0,0.0085912]
[1744916866942,0.24703586,85008.0,85005.0,0.0085912]
[1744916867129,0.01176359,85008.0,85005.0,0.0085912]
[1744916867488,0.01176359,85008.0,85005.0,0.02035521]
[1744916867762,0.01176332,85010.0,85006.0,0.35176387]
[1744916867985,0.24703281,85009.0,85006.0,0.35176387]
[1744916869102,0.24702824,85011.0,85007.0,0.01176373]
[1744916869285,0.01176318,85011.0,85007.0,0.01176373]
[1744916869813,0.01176318,85011.0,85008.0,0.23527197]
[1744916870168,0.01176318,85011.0,85008.0,0.06556097]
[1744916870710,0.34372396,85012.0,85008.0,0.07732456]
[1744916871508,0.34372396,85012.0,85009.0,0.01000962]
[1744916871907,0.34372396,85012.0,85008.0,0.07732456]
[1744916872123,0.34372396,85012.0,85010.0,0.01000962]
[1744916872335,0.34372396,85012.0,85008.0,0.07732456]
[1744916872538,0.34372396,85012.0,85011.0,0.01000962]
[1744916872712,0.34372396,85012.0,85008.0,0.07732456]
[1744916872892,0.34372396,85012.0,85011.0,0.01001056]
[1744916873092,0.34372396,85012.0,85008.0,0.07732456]
[1744916873334,0.34372396,85012.0,85011.0,0.01001056]
[1744916873542,0.0967,85012.0,85007.0,0.01176373]
[1744916873746,0.0967,85012.0,85011.0,0.01001056]
[1744916874260,0.0967,85012.0,85009.0,0.01176346]
[1744916874455,0.0967,85012.0,85010.0,0.01000962]
[1744916874986,0.33196288,85012.0,85010.0,0.01000962]
[1744916875578,0.0967,85012.0,85010.0,0.01000962]
[1744916875787,0.0967,85012.0,85010.0,0.24527591]
[1744916875788,0.049,85012.0,85010.0,0.24527591]
[1744916876014,0.049,85012.0,85011.0,0.23526367]
[1744916876426,0.0455,85019.0,85015.0,0.01176263]
[1744916876674,0.24699278,85023.0,85020.0,0.24699891]
[1744916876923,0.01176138,85024.0,85021.0,0.02178175]
[1744916877124,0.29388421,85026.0,85022.0,0.01176166]
[1744916877307,0.29388421,85026.0,85024.0,0.34]
[1744916877308,0.0469,85026.0,85024.0,0.34]
[1744916877681,0.28212233,85026.0,85024.0,0.34]
[1744916877877,0.28212233,85026.0,85025.0,0.01002277]
[1744916878082,0.23522233,85026.0,85025.0,0.01002277]
[1744916878299,0.24698059,85027.0,85025.0,0.01002277]
[1744916878620,0.23522216,85026.0,85025.0,0.01002277]
[1744916878775,0.24698059,85027.0,85023.0,0.58699193]
[1744916878980,0.01166217,85027.0,85025.0,0.01002371]
[1744916879181,0.01166217,85027.0,85024.0,0.24698853]
[1744916879376,0.0464,85030.0,85024.0,0.24698853]
[1744916879377,0.0464,85030.0,85027.0,0.34]
[1744916879581,0.29386687,85032.0,85027.0,0.34]
[1744916879582,0.29386687,85032.0,85027.0,0.36057567]
[1744916879887,0.01176041,85031.0,85028.0,0.01002653]
[1744916880252,0.0469,85032.0,85029.0,0.23521386]
[1744916880427,0.24695658,85036.0,85030.0,0.34]
[1744916880628,0.00013479,85034.0,85030.0,0.3499202]
[1744916880878,0.23520791,85032.0,85030.0,0.3499202]
[1744916881066,0.23520833,85031.0,85030.0,0.3499202]
[1744916881275,0.23520833,85031.0,85011.0,0.001]
[1744916881276,0.01176221,85018.0,85011.0,0.001]
[1744916881487,0.2352609,85012.0,85011.0,0.341]
[1744916881693,0.2352609,85012.0,85011.0,0.34]
[1744916882094,0.2352609,85012.0,85011.0,0.3536577]
[1744916882522,0.2352609,85012.0,85011.0,0.0136577]
[1744916882924,0.2352609,85012.0,85002.0,0.01176442]
[1744916882925,0.01176387,85006.0,85002.0,0.01176442]
[1744916883058,0.01176387,85006.0,85002.0,0.35176442]
[1744916883765,0.24703659,85008.0,85004.0,0.34]
[1744916884524,0.23526367,85011.0,85004.0,0.34]
[1744916884741,0.046,85022.0,85014.0,0.01176276]
[1744916884940,0.0117618,85021.0,85016.0,0.24701006]
[1744916885081,0.046,85022.0,85019.0,0.01176207]
[1744916885287,0.046,85022.0,85019.0,0.24700158]
[1744916885481,0.046,85022.0,85019.0,0.23523951]
[1744916885744,0.046,85022.0,85019.0,0.24700158]
[1744916886288,0.046,85022.0,85014.0,0.34]
[1744916886289,0.01176235,85017.0,85014.0,0.34]
[1744916886609,0.24700962,85017.0,85015.0,0.00995831]
[1744916886807,0.01176235,85017.0,85015.0,0.00995831]
[1744916887391,0.24700692,85018.0,85015.0,0.00995831]
[1744916887834,0.23524983,85016.0,85015.0,0.00995831]
[1744916888038,0.23524774,85017.0,85015.0,0.00995831]
[1744916888233,0.01176318,85011.0,85004.0,0.26111682]
[1744916888539,0.2823775,85006.0,85005.0,0.00828642]
[1744916888700,0.40182541,85006.0,85005.0,0.00828642]
[1744916888872,0.23528027,85005.0,85004.0,0.01375428]
[1744916889075,0.35472818,85005.0,85004.0,0.01375428]
[1744916890761,0.24706121,85000.0,84994.0,0.34]
[1744916890990,0.24706121,85000.0,84994.0,0.57537404]
[1744916891221,0.01176484,84999.0,84995.0,0.00659987]
[1744916891548,0.01176484,84999.0,84995.0,0.01416573]
[1744916891782,0.01176484,84999.0,84996.0,0.00659893]
[1744916892223,0.01176456,85001.0,84996.0,0.34659893]
[1744916892457,0.23528304,85004.0,84999.0,0.34]
[1744916892660,0.01176442,85002.0,84999.0,0.34]
[1744916892785,0.24705361,85002.0,85000.0,0.00660363]
[1744916894330,0.23529965,84998.0,84997.0,0.34]
[1744916895384,0.24706463,84998.0,84995.0,0.01395785]
[1744916895856,0.01176498,84998.0,84994.0,6.346e-05]
[1744916896085,0.01176498,84998.0,84996.0,0.00557722]
[1744916896321,0.01176498,84998.0,84997.0,0.00557722]
[1744916896764,0.01176498,84998.0,84994.0,0.01182899]
[1744916896993,0.24706239,84999.0,84997.0,0.00557816]
[1744916897227,0.01176484,84999.0,84995.0,0.35176539]
[1744916897457,0.01176484,84999.0,84998.0,0.00557816]
[1744916897698,0.01176484,84999.0,84998.0,0.0055791]
[1744916897885,0.01176484,84999.0,84995.0,0.36577746]
[1744916898174,0.01176484,84999.0,84996.0,0.00557816]
[1744916898442,0.24706316,84999.0,84996.0,0.00557816]
[1744916900251,0.23530023,84998.0,84996.0,0.00557816]
[1744916902280,0.01176484,84999.0,84996.0,0.00557816]
[1744916903450,0.24706147,85000.0,84996.0,0.00557816]
[1744916904894,0.23529621,85000.0,84996.0,0.00557816]
[1744916905072,0.01176484,84999.0,84996.0,0.00557816]
[1744916905969,0.24706173,84999.0,84996.0,0.00557816]
[1744916906955,0.24706091,85000.0,84996.0,0.34557816]
[1744916907361,0.23530242,84997.0,84996.0,0.34557816]
[1744916907569,0.01176442,85002.0,84997.0,0.01176512]
[1744916907795,0.18716,85011.0,85005.0,0.01176401]
[1744916907992,0.19892318,85011.0,85006.0,0.34]
[1744916908191,0.43418726,85011.0,85006.0,0.34]
[1744916908401,0.14096,85011.0,85009.0,0.23526679]
[1744916908627,0.14096,85011.0,85010.0,0.23526643]
[1744916908758,0.14096,85011.0,85009.0,0.23526679]
[1744916908958,0.14096,85011.0,85010.0,0.00564338]
[1744916909554,0.15272318,85011.0,85008.0,0.34]
[1744916909758,0.15272318,85011.0,85010.0,0.00559524]
[1744916910057,0.14096,85011.0,85010.0,0.00559524]
[1744916910268,0.01176304,85012.0,85008.0,0.34]
[1744916910575,0.01176304,85012.0,85009.0,0.00559524]
[1744916910979,0.24702413,85012.0,85008.0,0.34]
[1744916911184,0.24702413,85012.0,85010.0,0.00559524]
[1744916911410,0.01176318,85011.0,85008.0,0.34]
[1744916911858,0.01176318,85011.0,85007.0,0.34]
[1744916912066,0.01176318,85011.0,85007.0,0.57527464]
[1744916913411,0.01276221,85018.0,85011.0,0.01176318]
[1744916913639,0.01276221,85018.0,85014.0,0.23525427]
[1744916913860,0.001,85018.0,85017.0,0.23524706]
[1744916915030,0.001,85018.0,85017.0,0.57524706]
[1744916916638,0.001,85018.0,85017.0,0.58081886]
[1744916917701,0.001,85018.0,85017.0,0.58181886]
[1744916923663,0.001,85018.0,85017.0,0.3465718]
[1744916923878,0.001,85018.0,85017.0,0.58181886]
[1744916924423,0.001,85018.0,85017.0,0.3465718]
[1744916924622,0.001,85018.0,85017.0,0.58181886]
[1744916924825,0.001,85018.0,85017.0,0.0065718]
[1744916925487,0.002,85018.0,85017.0,0.0065718]
[1744916925643,0.2372443,85018.0,85017.0,0.0065718]
[1744916925844,0.2372443,85018.0,85017.0,0.001]
[1744916926032,0.2372443,85018.0,85017.0,0.00643785]
[1744916926253,0.35669221,85018.0,85017.0,0.00643785]
[1744916926458,0.40299221,85018.0,85017.0,0.001]
[1744916931277,0.2352692,85009.0,85008.0,0.44791492]
[1744916931425,0.24703831,85008.0,85004.0,0.01176415]
[1744916931596,0.36648622,85008.0,85004.0,0.01176415]
[1744916931999,0.36648622,85008.0,85004.0,0.2470464]
[1744916932274,0.1312115,85008.0,85005.0,0.24704331]
[1744916932590,0.11944791,85008.0,85005.0,0.24704331]
[1744916933476,0.1312115,85008.0,85004.0,0.2470464]
[1744916933767,0.1312115,85008.0,85004.0,0.01176415]
[1744916933996,0.36648587,85008.0,85004.0,0.01176415]
[1744916934234,0.0495,85004.0,84999.0,0.45967976]
[1744916934473,0.11944791,85008.0,85005.0,0.01176401]
[1744916934704,0.11944791,85008.0,85005.0,0.24704199]
[1744916937030,0.35472031,85008.0,85005.0,0.01176401]
[1744916937451,0.35472031,85008.0,85005.0,0.24704428]
[1744916937765,0.35472031,85008.0,85005.0,0.01176401]
[1744916938753,0.11944791,85008.0,85005.0,0.24704363]
[1744916938955,0.24702256,85013.0,85009.0,0.2352692]
[1744916939231,0.24701533,85015.0,85011.0,0.24702627]
[1744916939392,0.11944791,85014.0,85011.0,0.24702627]
[1744916939624,0.13121067,85014.0,85010.0,0.01176332]
[1744916939959,0.23525849,85013.0,85010.0,0.24702939]
[1744916940134,0.23525849,85013.0,85010.0,0.01176332]
[1744916940289,0.24702579,85012.0,85008.0,0.01176359]
[1744916940692,0.24702749,85011.0,85005.0,0.69495754]
[1744916940900,0.24702749,85011.0,85006.0,0.24704089]
[1744916941880,0.24702749,85011.0,85007.0,0.23527395]
[1744916942499,0.23526711,85010.0,85007.0,0.23527395]
[1744916945645,0.01176332,85010.0,85000.0,0.45967962]
[1744916945787,0.0466,85003.0,85000.0,0.44791492]
[1744916946127,0.29365058,85003.0,85000.0,0.23529406]
[1744916946477,0.23528873,85002.0,85001.0,0.00558008]
[1744916946706,0.23528873,85002.0,84999.0,0.23529147]
[1744916946900,0.0466,85003.0,85000.0,0.25263559]
[1744916947124,0.0466,85003.0,85001.0,0.23529094]
[1744916947349,0.0466,85003.0,85000.0,0.00557914]
[1744916947649,0.28188659,85003.0,85002.0,0.00558008]
[1744916947816,0.01176442,85002.0,84998.0,0.24706344]
[1744916948223,0.01176442,85002.0,84999.0,0.23529638]
[1744916949011,0.24705519,85002.0,84998.0,0.2470633]
[1744916949405,0.24705827,85001.0,84997.0,0.24706723]
[1744916949568,0.0117647,85000.0,84996.0,0.24706973]
[1744916949968,0.24706088,85001.0,84997.0,0.24706555]
[1744916950180,0.24706088,85001.0,84995.0,0.01401207]
[1744916950181,0.24706463,84998.0,84995.0,0.01401207]
[1744916950378,0.24706463,84998.0,84988.0,0.01176636]
[1744916950379,0.23530519,84996.0,84988.0,0.01176636]
[1744916950579,0.23530519,84996.0,84990.0,0.01176609]
[1744916950580,0.40175586,84995.0,84990.0,0.01176609]
[1744916950800,0.40175586,84995.0,84980.0,0.46052459]
[1744916950960,0.44735586,84995.0,84980.0,0.0008422]
[1744916951159,0.44735586,84995.0,84980.0,0.44875712]
[1744916951402,0.44735586,84995.0,84983.0,0.23534069]
[1744916951604,0.44735586,84995.0,84983.0,0.24710774]
[1744916951875,0.44735586,84995.0,84980.0,0.0008422]
[1744916952078,0.44735586,84995.0,84983.0,0.01729703]
[1744916952460,0.44735586,84995.0,84980.0,0.0008422]
[1744916952461,0.45823481,84995.0,84980.0,0.0008422]
[1744916952862,0.45823481,84995.0,84981.0,0.01779759]
[1744916956422,0.45823481,84995.0,84980.0,0.0008422]
[1744916957190,0.45823481,84995.0,84980.0,0.01858591]
[1744916958315,0.44735586,84995.0,84980.0,0.01858591]
[1744916960796,0.44735586,84995.0,84980.0,0.0008422]
[1744916961378,0.44735586,84995.0,84980.0,0.01838668]
[1744916964226,0.44735586,84995.0,84980.0,0.4663016]
[1744916965249,0.44735586,84995.0,84989.0,0.23532347]
[1744916965453,0.11944791,84995.0,84992.0,0.2470819]
[1744916965875,0.11944791,84995.0,84994.0,0.00503002]
[1744916966054,0.11944791,84995.0,84994.0,6.346e-05]
[1744916966287,0.11944791,84995.0,84994.0,0.00502251]
[1744916966463,0.11944791,84995.0,84994.0,0.23537418]
[1744916966636,0.11944791,84995.0,84994.0,0.24033417]
[1744916967742,0.11944791,84995.0,84994.0,0.00502345]
[1744916970564,0.11944791,85000.0,84999.0,0.23529688]
[1744916970747,0.11944791,85000.0,84999.0,0.2401274]
[1744916973471,0.11944791,85000.0,84999.0,0.00483052]
[1744916973674,0.11944791,85000.0,84996.0,0.01176525]
[1744916973875,0.24706232,84999.0,84997.0,0.00480765]
[1744916974084,0.24706232,84999.0,84994.0,0.01282899]
[1744916974324,0.01176484,84999.0,84995.0,0.01657368]
[1744916974743,0.11944791,85000.0,84997.0,0.01176512]
[1744916974915,0.11944791,85000.0,84997.0,0.24706517]
[1744916975143,0.11944791,85000.0,84998.0,0.00480829]
[1744916975343,0.11944791,85000.0,84996.0,0.24706792]
[1744916975549,0.11944791,85000.0,84997.0,0.00480829]
[1744916976254,0.35474218,85000.0,84997.0,0.00480829]
[1744916976751,0.36650688,85000.0,84995.0,0.24707326]
[1744916976952,0.36650688,85000.0,84996.0,0.00480829]
[1744916977720,0.24706249,84999.0,84996.0,0.00480829]
[1744916977892,0.01176498,84998.0,84991.0,0.23531903]
[1744916978138,0.01176525,84996.0,84992.0,0.01176581]
[1744916978770,0.01176539,84995.0,84989.0,0.68323893]
[1744916978997,0.01176539,84995.0,84990.0,0.23532104]
[1744916979205,0.24708262,84992.0,84989.0,0.44791492]
[1744916979335,0.01176581,84992.0,84986.0,0.24709885]
[1744916979542,0.24708498,84991.0,84986.0,0.01176664]
[1744916979941,0.23533841,84984.0,84982.0,0.44791492]
[1744916980146,0.23534529,84982.0,84977.0,0.01176789]
[1744916980332,0.36655081,84985.0,84980.0,0.03022196]
[1744916981490,0.36655081,84985.0,84980.0,0.26557135]
[1744916981720,0.11944791,84985.0,84981.0,0.2471119]
[1744916983524,0.23534395,84982.0,84980.0,0.01845449]
[1744916983643,0.35479463,84981.0,84980.0,0.01845449]
[1744916983843,0.35479463,84981.0,84980.0,0.0008422]
[1744916984597,0.35479463,84981.0,84980.0,0.01782028]
[1744916984802,0.35479463,84981.0,84980.0,0.0008422]
[1744916984982,0.35479463,84981.0,84980.0,0.01806014]
[1744916985163,0.35479463,84981.0,84980.0,0.0008422]
[1744916988162,0.35479463,84981.0,84971.0,0.2479863]
[1744916988163,0.24712869,84976.0,84971.0,0.07915123]
[1744916988363,0.11944791,84975.0,84971.0,0.0967588]
[1744916989546,0.11944791,84975.0,84972.0,0.24713857]
[1744916989756,0.11944791,84975.0,84971.0,0.0967588]
[1744916989757,0.11944791,84975.0,84971.0,0.01760757]
[1744916989905,0.13121607,84975.0,84971.0,0.25298188]
[1744916990110,0.36657963,84975.0,84971.0,0.01176872]
[1744916990766,0.24713443,84974.0,84970.0,0.24798913]
[1744916990945,0.11944791,84973.0,84970.0,0.24843874]
[1744916991342,0.12044791,84973.0,84970.0,0.24843874]
[1744916991766,0.12044791,84973.0,84971.0,0.23537423]
[1744916992514,0.12044791,84973.0,84972.0,0.23537165]
[1744916993127,0.001,84973.0,84972.0,0.23537165]
[1744916995039,0.001,84973.0,84970.0,0.03014241]
[1744916998507,0.001,84973.0,84970.0,0.01837356]